bitfinex/quotes_ETHUSD_20241217
["timestamp","ask_amount","ask_price","bid_price","bid_amount"]
[1734395615594,0.0766,3972.2,3970.9,0.15399777]
[1734395615784,0.0766,3972.2,3971.5,3.0]
[1734395616438,0.0766,3972.2,3971.9,3.0]
[1734395616627,0.0766,3972.2,3972.0,0.3]
[1734395616803,0.0766,3972.2,3971.9,3.0]
[1734395616980,0.0766,3972.2,3971.3,0.02517143]
[1734395617325,0.0766,3972.2,3971.4,0.55]
[1734395617494,0.0766,3972.2,3971.9,3.0]
[1734395617891,0.0766,3972.2,3971.3,0.55]
[1734395618219,0.0766,3972.2,3971.9,3.0]
[1734395618929,0.0766,3972.2,3971.4,0.16945453]
[1734395619221,0.0766,3972.2,3971.3,0.14922363]
[1734395619389,0.0766,3972.2,3971.9,3.0]
[1734395620380,0.0766,3972.2,3971.5,3.0]
[1734395620580,0.0766,3972.2,3971.3,0.12405138]
[1734395620997,0.0766,3972.2,3971.5,3.0]
[1734395621225,0.0766,3972.2,3971.6,0.31240514]
[1734395621893,0.0766,3972.2,3971.9,3.0]
[1734395622426,0.0766,3972.2,3972.0,3.0]
[1734395622628,0.1638174,3972.3,3972.2,3.0]
[1734395622853,0.0766,3972.6,3972.2,39.078143]
[1734395623164,0.0766,3972.6,3972.4,3.0]
[1734395623305,2.0818851,3975.6,3972.6,3.0]
[1734395623306,0.0766,3973.1,3972.6,3.0]
[1734395623512,0.0766,3973.1,3972.7,0.02516532]
[1734395623747,0.0766,3973.1,3972.7,3.02516532]
[1734395623930,0.0766,3973.1,3972.9,3.0]
[1734395624250,0.0766,3975.6,3973.1,3.0]
[1734395624418,0.2314918,3975.5,3973.2,2.28485978]
[1734395624753,0.0766,3975.3,3973.0,0.55]
[1734395624902,0.2314918,3975.2,3973.4,3.0]
[1734395625104,0.2314918,3975.2,3973.0,0.55]
[1734395625105,0.0766,3975.0,3973.0,0.55]
[1734395625423,0.0766,3975.0,3973.4,3.0]
[1734395627311,0.0766,3975.0,3973.0,0.67347934]
[1734395627659,0.0766,3975.0,3973.3,3.0]
[1734395627810,0.0766,3974.8,3973.1,0.17576911]
[1734395628209,0.23119578,3974.7,3972.8,0.12753012]
[1734395628511,0.23124873,3974.6,3972.3,0.02516519]
[1734395628710,0.0766,3974.5,3972.2,0.12505674]
[1734395628962,0.25,3975.6,3971.8,0.7703]
[1734395628963,0.23122305,3974.4,3971.8,0.7703]
[1734395629255,0.0766,3974.2,3971.8,1.0842118]
[1734395629454,0.0766,3974.2,3971.9,0.3139118]
[1734395629825,0.0766,3974.2,3971.2,0.7703]
[1734395630010,0.0766,3974.0,3971.5,0.3139118]
[1734395630211,0.0766,3973.8,3971.5,0.3139118]
[1734395630410,0.0766,3973.6,3971.5,0.3139118]
[1734395630871,0.0766,3973.4,3971.5,0.3139118]
[1734395631062,0.0766,3973.4,3971.5,0.33908386]
[1734395631224,0.0766,3973.4,3972.1,3.0]
[1734395631423,0.0766,3973.4,3972.2,0.3]
[1734395631754,0.0766,3973.4,3972.3,0.02516887]
[1734395632055,0.0766,3973.4,3972.2,0.3]
[1734395632056,0.0766,3973.4,3972.4,3.0]
[1734395632611,0.0766,3973.4,3971.6,0.79546791]
[1734395632612,0.0766,3973.4,3971.1,0.125377]
[1734395632831,3.0,3974.4,3970.5,0.02516806]
[1734395632832,0.0766,3973.2,3970.5,0.7703]
[1734395633035,0.0766,3973.0,3970.5,0.7703]
[1734395633273,0.0766,3973.0,3969.9,0.02517628]
[1734395633274,0.0766,3972.8,3970.0,0.7703]
[1734395633441,0.0766,3972.6,3970.1,0.31908766]
[1734395634134,0.0766,3972.6,3971.1,0.12321213]
[1734395635443,0.0766,3972.6,3971.1,3.12321213]
[1734395635776,0.23213652,3972.5,3971.2,0.31232121]
[1734395635975,0.0766,3972.4,3971.2,0.31232121]
[1734395636135,0.0766,3972.4,3971.1,3.12321213]
[1734395636483,0.0766,3972.4,3971.1,0.12321213]
[1734395636684,0.0766,3972.4,3971.1,3.12321213]
[1734395636979,0.0766,3972.4,3971.1,0.12321213]
[1734395637139,0.0766,3972.4,3971.1,3.12321213]
[1734395637479,0.0766,3972.4,3971.2,0.31232121]
[1734395637675,0.0766,3972.4,3971.1,3.12321213]
[1734395637888,0.0766,3972.4,3970.1,0.02517421]
[1734395637889,0.23230637,3972.3,3970.1,0.55]
[1734395638092,0.0766,3972.2,3971.1,3.0]
[1734395638891,0.0766,3972.2,3970.9,3.0]
[1734395639127,0.0766,3972.2,3970.0,0.79547602]
[1734395639300,0.0766,3972.2,3969.9,0.1274458]
[1734395639507,3.25,3973.8,3969.6,0.828]
[1734395639508,0.0766,3972.0,3969.6,0.828]
[1734395639654,0.25,3973.5,3969.6,0.12461336]
[1734395639655,0.0766,3971.8,3969.6,0.12461336]
[1734395639855,0.0766,3971.6,3969.1,0.828]
[1734395640056,0.0766,3971.4,3969.1,0.828]
[1734395640423,0.0766,3971.2,3968.2,0.2939118]
[1734395640699,3.91407643,3972.9,3968.2,0.2939118]
[1734395640700,0.0766,3971.0,3968.3,1.65860118]
[1734395640908,0.23232265,3970.9,3968.3,0.828]
[1734395641055,0.0766,3970.7,3968.3,0.828]
[1734395641411,0.0766,3970.5,3968.9,0.12874128]
[1734395641551,0.0766,3970.5,3968.0,0.02518986]
[1734395641755,0.23239519,3970.4,3967.9,0.85318986]
[1734395641988,0.0766,3970.2,3968.5,0.12880073]
[1734395642191,0.0766,3970.2,3968.6,0.3191024]
[1734395642458,0.0766,3970.2,3968.5,0.12880073]
[1734395642895,0.0766,3970.2,3968.6,0.02518772]
[1734395643209,0.0766,3970.2,3968.5,0.12880073]
[1734395643355,0.0766,3970.2,3969.2,3.0]
[1734395643553,0.0766,3970.2,3969.3,0.3]
[1734395644102,0.0766,3970.2,3968.6,0.0251893]
[1734395644103,0.0766,3970.2,3969.2,3.0]
[1734395644453,0.0766,3970.2,3968.5,0.15398845]
[1734395644695,0.0766,3970.2,3968.6,0.55]
[1734395645007,0.0766,3970.2,3968.7,0.02518929]
[1734395645184,0.55,3971.8,3970.7,0.3234]
[1734395645386,0.23129464,3971.7,3970.7,0.3234]
[1734395645623,1.04094255,3972.8,3970.7,0.3234]
[1734395645835,0.2313317,3972.7,3970.7,0.3234]
[1734395646129,0.2313317,3972.6,3970.7,0.3234]
[1734395646429,0.2313317,3972.5,3970.7,0.3234]
[1734395646608,0.2313317,3972.4,3970.7,0.3234]
[1734395646812,0.2313317,3972.3,3970.7,0.3234]
[1734395646999,1.56141383,3972.7,3970.7,0.3234]
[1734395647000,0.2313317,3972.2,3970.7,0.3234]
[1734395647327,0.55,3972.0,3970.7,0.3234]
[1734395647481,0.2313317,3971.9,3970.7,0.3234]
[1734395647681,0.2313317,3971.8,3970.7,0.3234]
[1734395647890,0.55,3972.0,3970.7,0.3234]
[1734395647891,0.2313317,3971.7,3970.7,0.3234]
[1734395648090,0.55,3972.0,3970.7,0.3234]
[1734395648091,0.23112912,3971.6,3970.7,0.3234]
[1734395648294,0.55,3972.0,3970.7,0.3234]
[1734395648578,0.23107115,3971.9,3970.7,0.3234]
[1734395648823,0.55,3971.8,3970.7,0.3234]
[1734395649121,0.23107115,3971.7,3970.7,0.3234]
[1734395649325,0.23107115,3971.6,3970.7,0.3234]
[1734395649626,0.23107115,3971.5,3970.7,0.3234]
[1734395649820,0.55,3971.8,3970.7,0.3234]
[1734395650121,0.23096799,3971.7,3970.7,0.3234]
[1734395651521,0.55,3971.8,3970.7,0.3234]
[1734395651824,0.23086719,3971.7,3970.7,0.3234]
[1734395652008,0.23086719,3971.6,3970.7,0.3234]
[1734395652216,0.55,3972.1,3970.7,0.3234]
[1734395652399,0.55,3971.9,3970.7,0.3234]
[1734395652600,0.55,3971.7,3970.7,0.3234]
[1734395652916,0.55,3971.5,3970.7,0.3234]
[1734395653100,0.55,3971.3,3968.4,0.12526204]
[1734395653297,0.55,3971.1,3968.0,0.828]
[1734395653496,1.04094255,3971.5,3968.0,0.828]
[1734395653497,0.55,3970.9,3968.0,0.828]
[1734395653698,0.55,3970.7,3968.1,0.02519399]
[1734395653897,0.55,3971.5,3968.3,0.1264855]
[1734395654098,0.23072646,3971.4,3969.1,3.0]
[1734395654342,0.23072646,3971.4,3968.4,0.85819297]
[1734395654343,1.04094255,3972.2,3969.2,0.0251878]
[1734395654488,0.23080446,3972.1,3969.3,0.833]
[1734395654688,11.10475686,3972.9,3969.3,0.833]
[1734395654689,0.23080446,3972.0,3969.3,0.833]
[1734395654916,0.23080446,3971.9,3969.7,3.0]
[1734395655234,1.04094255,3972.6,3969.8,0.3]
[1734395655434,1.0870179,3972.5,3969.7,3.0]
[1734395655740,0.55,3972.3,3969.7,3.0]
[1734395655921,0.55,3972.1,3969.7,3.0]
[1734395656102,0.23083454,3972.0,3969.4,0.55]
[1734395656306,0.55,3971.7,3968.5,0.833]
[1734395656506,0.55,3971.5,3968.1,0.833]
[1734395656747,0.55,3971.3,3968.1,0.833]
[1734395656917,0.55,3971.1,3968.1,0.833]
[1734395657102,0.23083454,3971.0,3968.1,0.833]
[1734395657304,0.78083454,3970.9,3968.1,0.833]
[1734395657606,0.78083454,3970.9,3967.9,0.2939118]
[1734395657607,0.23083454,3970.8,3967.9,0.2939118]
[1734395657932,0.23083454,3970.8,3968.3,0.1264855]
[1734395657933,0.55,3970.7,3968.3,0.1264855]
[1734395658339,0.23083454,3970.6,3968.3,0.1264855]
[1734395658837,0.23083454,3970.6,3968.5,3.0]
[1734395659041,0.23083454,3970.6,3968.3,0.1264855]
[1734395659719,0.23083454,3970.6,3968.4,1.383]
[1734395659923,1.04094255,3971.8,3968.6,0.55]
[1734395660094,0.23136782,3971.7,3968.9,0.55]
[1734395660294,0.23136782,3971.7,3969.8,3.0]
[1734395660492,0.23136782,3971.7,3969.7,0.833]
[1734395660706,1.04094255,3971.8,3969.8,0.02518495]
[1734395660912,1.04094255,3971.8,3969.7,0.833]
[1734395660913,0.23149645,3971.7,3969.9,3.0]
[1734395661113,1.04094255,3972.4,3970.0,0.3833]
[1734395661316,0.23161197,3972.2,3970.0,0.3833]
[1734395661554,0.23161197,3972.1,3970.3,3.0]
[1734395661769,1.04094255,3972.4,3970.3,3.0]
[1734395662072,0.23167616,3972.3,3970.3,3.0]
[1734395662196,0.23167616,3972.3,3970.1,0.833]
[1734395662398,0.23167616,3972.3,3970.2,0.55]
[1734395662699,0.23167616,3972.3,3970.3,3.14081804]
[1734395663019,0.23167616,3972.3,3970.4,3.0]
[1734395663193,0.23167616,3972.3,3970.5,0.02518037]
[1734395663399,0.23167616,3972.3,3970.5,3.02518037]
[1734395663596,0.23167616,3972.3,3970.5,3.0]
[1734395663801,0.23167616,3972.3,3970.6,0.3]
[1734395664499,0.23191358,3972.2,3970.6,0.3]
[1734395664699,1.04094255,3972.4,3970.6,0.3]
[1734395665143,0.23192254,3972.3,3970.6,0.3]
[1734395665505,0.23192254,3972.3,3970.5,3.0]
[1734395665704,0.23192254,3972.3,3970.0,0.55]
[1734395665921,0.23192254,3972.3,3970.5,3.0]
[1734395666326,0.23192254,3972.3,3970.0,0.02518035]
[1734395666644,0.23192254,3972.3,3970.5,3.0]
[1734395666943,0.23192254,3972.3,3970.6,0.3]
[1734395667240,0.23192254,3972.2,3970.6,0.3]
[1734395667440,0.23192254,3972.1,3970.3,3.0]
[1734395667737,0.23192254,3972.0,3970.3,3.0]
[1734395668060,0.23192254,3972.3,3970.3,3.0]
[1734395668246,0.23192254,3972.2,3970.3,3.0]
[1734395668402,0.23192254,3972.1,3969.8,0.02518281]
[1734395668601,0.23192254,3972.0,3970.3,3.0]
[1734395668801,0.23192254,3971.9,3970.4,0.3]
[1734395669102,0.23192254,3971.8,3970.4,0.3]
[1734395669399,0.23192254,3971.7,3969.7,0.1274927]
[1734395669620,0.23192254,3971.6,3969.7,0.12411569]
[1734395669813,0.23192254,3971.5,3969.7,0.12411569]
[1734395670041,0.23192254,3971.4,3969.9,3.0]
[1734395670243,0.23192254,3971.3,3969.9,3.0]
[1734395670446,0.23192254,3971.2,3970.0,0.31241157]
[1734395670613,0.55,3972.3,3969.9,3.0]
[1734395670815,0.55,3972.1,3969.9,3.0]
[1734395671018,0.55,3971.9,3969.2,0.12769813]
[1734395671258,0.23242777,3971.8,3969.2,0.12769813]
[1734395671553,0.55,3971.6,3969.2,0.12769813]
[1734395671703,0.55,3971.4,3968.7,0.12308511]
[1734395671931,0.55,3971.2,3968.5,0.15094855]
[1734395672177,0.55,3971.0,3968.0,0.8271]
[1734395672360,0.55,3970.8,3968.0,0.8271]
[1734395672567,0.23242777,3970.7,3968.0,0.8271]
[1734395672744,0.23242777,3970.6,3968.0,0.8271]
[1734395673074,0.23242777,3970.5,3968.0,0.8271]
[1734395673282,0.23242777,3970.4,3968.0,0.8271]
[1734395673489,0.23242777,3970.3,3968.0,0.8271]
[1734395673633,0.23242777,3970.2,3968.0,0.8271]
[1734395673833,0.23242777,3970.1,3968.0,0.8271]
[1734395674074,0.23242777,3970.0,3968.0,0.8271]
[1734395674274,0.23242777,3969.9,3968.1,0.55]
[1734395674435,0.55,3970.8,3968.2,0.13771]
[1734395674633,0.23226051,3970.7,3968.2,0.13771]
[1734395674886,0.2322698,3970.6,3968.2,0.13771]
[1734395675039,0.3822698,3970.8,3968.2,0.13771]
[1734395675594,1.04094255,3971.5,3968.3,0.9918035]
[1734395675775,1.04094255,3971.5,3968.3,0.67269783]
[1734395676072,3.0,3971.4,3968.3,0.17630324]
[1734395676281,3.0,3971.4,3968.1,0.12552461]
[1734395676577,3.25,3971.4,3967.7,0.55]
[1734395676735,0.25,3971.2,3967.7,0.55]
[1734395677126,0.55,3971.1,3967.7,0.55]
[1734395677585,2.62313388,3971.0,3967.7,0.55]
[1734395677874,3.55,3970.9,3967.7,0.55]
[1734395678034,3.55,3970.9,3967.8,0.02519724]
[1734395678240,0.55,3970.3,3967.8,0.02519724]
[1734395678445,1.59094255,3970.3,3967.7,0.6787472]
[1734395678644,2.1443936,3970.2,3967.8,0.38063553]
[1734395678845,2.1443936,3970.2,3967.7,0.6787472]
[1734395679744,1.59094255,3970.3,3967.7,0.6787472]
[1734395679945,0.55,3970.3,3967.8,0.02519725]
[1734395680246,0.55,3970.4,3967.8,0.02519725]
[1734395680448,5.21541945,3971.0,3967.8,0.02519725]
[1734395680449,1.04094255,3970.7,3968.3,0.55]
[1734395680670,1.04094255,3971.0,3968.8,0.55]
[1734395680852,1.04094255,3971.3,3968.9,0.4334]
[1734395681057,2.1459202,3971.2,3968.9,0.4334]
[1734395681281,0.85836808,3971.1,3968.8,0.55]
[1734395681581,0.85836808,3971.0,3968.8,0.55]
[1734395681741,1.04094255,3971.2,3968.8,0.55]
[1734395681944,3.18784703,3971.1,3968.8,0.55]
[1734395682144,2.14690448,3971.0,3968.8,0.55]
[1734395682443,0.85906253,3970.9,3968.9,0.1334]
[1734395682647,1.04094255,3971.1,3968.9,0.1334]
[1734395682957,1.04094255,3971.1,3968.2,4.05148681]
[1734395682958,0.55,3970.8,3968.2,0.784]
[1734395683160,1.04094255,3970.6,3967.7,1.18023401]
[1734395683368,1.04094255,3970.2,3967.8,1.334]
[1734395683562,2.1474677,3970.5,3967.8,0.784]
[1734395683563,3.18841025,3970.1,3967.8,0.784]
[1734395683761,0.85898708,3970.0,3967.8,0.784]
[1734395683993,1.04094255,3970.2,3967.8,0.784]
[1734395684145,1.28891452,3970.1,3967.8,0.784]
[1734395684346,0.85934417,3970.0,3968.1,3.0]
[1734395684553,1.04094255,3970.1,3968.2,0.3]
[1734395684755,1.04094255,3970.1,3967.9,0.55]
[1734395684954,1.28934826,3970.0,3967.9,0.55]
[1734395685157,0.859574,3969.9,3967.9,0.55]
[1734395685372,1.04094255,3970.1,3968.1,3.0]
[1734395685591,1.04094255,3970.1,3967.9,0.55]
[1734395685891,1.04094255,3970.1,3968.0,0.47147084]
[1734395686386,1.28936726,3970.0,3968.0,0.44627472]
[1734395686542,0.85964757,3969.9,3968.1,3.0]
[1734395686746,1.04094255,3970.1,3968.1,3.02519612]
[1734395687013,1.04094255,3970.2,3968.2,0.40214708]
[1734395687212,1.09150856,3970.1,3968.3,0.02519612]
[1734395687368,0.23166054,3970.0,3968.0,0.02519613]
[1734395687570,1.04094255,3970.3,3968.0,0.02519613]
[1734395687907,1.52136091,3970.2,3968.0,0.02519613]
[1734395688110,1.0914546,3970.1,3968.0,0.02519613]
[1734395688324,0.23164198,3970.0,3968.1,0.43591961]
[1734395688523,1.04094255,3970.3,3968.1,0.43591961]
[1734395688822,1.55324933,3970.5,3968.4,0.55]
[1734395688823,0.23166378,3970.2,3968.4,0.55]
[1734395688981,1.04094255,3970.9,3968.9,0.8119]
[1734395689174,1.55324933,3971.1,3968.9,0.8119]
[1734395689175,0.23169103,3970.8,3969.0,0.38119]
[1734395689377,1.04094255,3971.1,3968.9,0.8119]
[1734395689567,1.04094255,3970.9,3968.9,0.8119]
[1734395689766,1.09166873,3970.8,3968.9,0.8119]
[1734395690078,0.23170449,3970.7,3968.9,0.8119]
[1734395690417,1.04094255,3971.0,3968.9,0.93684435]
[1734395690582,0.23171866,3970.9,3969.0,0.02519126]
[1734395690785,1.04094255,3971.1,3969.0,0.55]
[1734395690984,0.23171122,3971.0,3969.1,0.14868444]
[1734395691191,1.04094255,3971.3,3969.1,0.14868444]
[1734395691379,0.23174707,3971.2,3969.1,0.14868444]
[1734395691580,0.86003638,3971.1,3969.1,0.14868444]
[1734395691786,0.23174707,3971.0,3969.1,0.14868444]
[1734395692005,0.23174707,3970.9,3969.2,0.16355288]
[1734395692274,0.23174707,3970.8,3969.2,0.16355288]
[1734395692525,1.04094255,3971.2,3969.2,0.16355288]
[1734395692711,0.23179439,3971.1,3969.2,0.16355288]
[1734395692869,0.23179341,3971.0,3969.2,0.16355288]
[1734395693076,1.04094255,3971.3,3969.2,0.16355288]
[1734395693292,1.04094255,3971.1,3969.2,0.16355288]
[1734395693611,3.4229207,3971.0,3969.2,0.16355288]
[1734395693818,0.860065,3970.9,3969.2,0.16355288]
[1734395694127,0.23187597,3970.8,3969.2,0.16355288]
[1734395694415,0.2319864,3970.7,3968.9,0.8119]
[1734395694622,1.04094255,3970.5,3968.4,0.8119]
[1734395694793,3.42328128,3970.4,3968.4,0.8119]
[1734395694994,3.42328128,3970.3,3968.4,0.8119]
[1734395695211,2.38233873,3970.2,3968.4,0.8119]
[1734395695436,2.38223818,3970.1,3968.4,0.8119]
[1734395695599,2.38216797,3970.0,3968.4,0.8119]
[1734395695778,1.09196348,3969.9,3968.4,0.8119]
[1734395695984,0.2319864,3969.8,3968.4,0.8119]
[1734395696289,0.2319864,3969.7,3968.4,0.8119]
[1734395696491,0.2319864,3969.6,3968.4,0.8119]
[1734395696707,1.04094255,3970.2,3968.4,0.8119]
[1734395696914,2.56250973,3970.1,3968.4,0.8119]
[1734395697095,2.14919521,3970.0,3968.4,0.8119]
[1734395697297,1.09171832,3969.9,3968.4,0.8119]
[1734395697496,0.23204024,3969.8,3968.4,0.8119]
[1734395697838,1.27298279,3969.7,3967.6,0.8119]
[1734395698038,1.04094255,3969.5,3967.6,0.8119]
[1734395698190,1.27298279,3969.4,3967.6,0.8119]
[1734395698383,2.38090572,3969.3,3967.6,0.8119]
[1734395698616,1.09158643,3969.2,3967.6,0.8119]
[1734395698921,0.23204024,3969.1,3967.6,0.8119]
[1734395699130,0.23204024,3969.0,3967.6,0.8119]
[1734395699280,0.23204024,3968.9,3967.6,0.8119]
[1734395699484,0.23204024,3968.8,3967.6,0.8119]
[1734395699732,0.23204024,3968.7,3967.6,0.8119]
[1734395699889,0.55,3969.3,3967.6,0.8119]
[1734395700081,0.55,3969.1,3966.7,0.7873]
[1734395700286,1.04094255,3968.9,3966.8,0.18387868]
[1734395700528,1.27317601,3968.8,3966.7,0.7873]
[1734395700696,1.09117143,3968.7,3966.7,0.7873]
[1734395701031,0.23223346,3968.6,3966.7,0.7873]
[1734395701228,0.23223346,3968.5,3966.7,0.7873]
[1734395701525,0.23223346,3968.4,3966.7,0.7873]
[1734395701832,0.23223346,3968.3,3966.7,0.7873]
[1734395702070,4.04094255,3969.0,3966.7,0.7873]
[1734395702071,0.23223346,3968.2,3966.7,0.7873]
[1734395702236,0.23223346,3968.1,3966.7,0.7873]
[1734395702435,0.23223346,3968.1,3965.6,2.09190928]
[1734395702436,0.23223346,3968.0,3965.6,0.7873]
[1734395702637,0.23223346,3967.9,3965.6,0.7873]
[1734395702951,0.78223346,3967.8,3965.6,0.7873]
[1734395703151,0.23223346,3967.7,3965.6,0.7873]
[1734395703346,0.55,3967.5,3965.6,0.7873]
[1734395703679,0.23223346,3967.4,3965.6,0.7873]
[1734395703881,0.55,3968.0,3965.6,0.7873]
[1734395704079,0.23172104,3967.9,3965.8,0.7873]
[1734395704228,1.04094255,3968.7,3966.0,0.7873]
[1734395704429,0.23160387,3968.6,3966.2,0.7873]
[1734395704640,0.23160387,3968.5,3966.2,0.7873]
[1734395704836,0.23160387,3968.4,3966.2,0.7873]
[1734395705077,0.23160387,3968.3,3966.2,0.7873]
[1734395705237,0.23160387,3968.2,3966.2,0.7873]
[1734395705450,1.16741823,3968.9,3966.2,0.7873]
[1734395705451,3.0,3968.5,3966.2,0.7873]
[1734395705624,0.55,3968.3,3966.2,0.7873]
[1734395705854,0.55,3968.1,3965.0,0.7873]
[1734395706097,0.55,3967.9,3965.2,0.7873]
[1734395706304,0.55,3967.7,3965.2,0.7873]
[1734395706597,0.55,3967.5,3965.2,0.7873]
[1734395706803,0.23147146,3967.4,3965.2,0.7873]
[1734395707029,0.78147146,3967.3,3965.2,0.7873]
[1734395707175,0.23147146,3967.2,3965.2,0.7873]
[1734395707374,0.23147146,3967.1,3965.2,0.7873]
[1734395707698,0.55,3966.9,3965.2,0.7873]
[1734395707902,0.55,3966.9,3964.3,0.1293193]
[1734395707903,0.23147146,3966.8,3964.3,0.1293193]
[1734395708206,3.78147146,3966.7,3964.0,0.7873]
[1734395708500,3.78147146,3966.7,3962.0,2.61819843]
[1734395708501,3.55,3966.5,3963.5,0.12542733]
[1734395708711,3.55,3966.5,3961.7,2.09190928]
[1734395708712,4.59094255,3966.3,3963.3,0.12446194]
[1734395708858,2.62313388,3965.9,3963.3,0.12446194]
[1734395709057,3.78147146,3965.8,3963.3,0.12446194]
[1734395709257,0.55,3965.6,3963.3,0.12446194]
[1734395709512,0.55,3965.4,3963.4,0.7873]
[1734395709690,3.0,3966.6,3963.6,0.7873]
[1734395709857,0.23014636,3966.5,3963.6,0.7873]
[1734395710057,0.21678616,3966.4,3963.6,0.7873]
[1734395710288,0.12892993,3966.7,3963.6,0.7873]
[1734395710802,2.62313388,3966.2,3963.6,0.7873]
[1734395710970,3.0,3966.1,3963.6,0.7873]
[1734395711166,0.55,3966.0,3963.6,0.7873]
[1734395713567,3.55,3965.8,3963.6,0.7873]
[1734395713924,0.55,3966.0,3963.6,0.7873]
[1734395715615,2.62313388,3967.1,3963.8,0.8203]
[1734395715835,2.62313388,3967.5,3964.0,0.8203]
[1734395715989,2.62313388,3967.5,3964.2,0.8203]
[1734395716527,2.75206381,3966.7,3964.2,0.8203]
[1734395717025,3.55,3966.6,3964.2,0.8203]
[1734395717172,3.0,3966.2,3964.2,0.8203]
[1734395717524,0.55,3966.1,3964.2,0.8203]
[1734395722144,0.04593609,3966.6,3964.2,0.8203]
[1734395722145,0.55,3965.9,3964.2,0.8203]
[1734395722335,0.55,3965.7,3964.2,0.8203]
[1734395722662,0.55,3965.5,3964.2,0.8203]
[1734395722827,0.55,3965.3,3964.2,0.8203]
[1734395723024,0.55,3965.5,3964.2,0.8203]
[1734395723264,0.12723604,3966.0,3964.2,0.8203]
[1734395723265,0.55,3965.3,3964.2,0.8203]
[1734395723563,0.22959854,3965.2,3964.2,0.8203]
[1734395723766,0.12723604,3966.0,3964.2,0.8203]
[1734395723953,0.22983678,3965.9,3964.2,0.8203]
[1734395724378,0.23004463,3965.8,3964.2,0.8203]
[1734395724709,0.23004463,3965.7,3964.2,0.8203]
[1734395724823,0.8043,3965.2,3961.2,0.02522855]
[1734395725028,2.649,3964.9,3961.2,0.2939118]
[1734395725268,0.23004463,3964.8,3961.3,0.02523415]
[1734395725564,0.55,3964.6,3961.3,0.02523415]
[1734395725762,0.55,3964.4,3961.3,0.02523415]
[1734395726175,0.55,3964.4,3962.4,3.0]
[1734395726323,0.23035913,3964.3,3962.5,0.3]
[1734395726525,0.55,3964.4,3962.5,0.3]
[1734395726838,0.23033982,3964.3,3962.5,0.3]
[1734395727044,0.55,3964.4,3962.4,3.0]
[1734395727707,0.2305588,3964.3,3961.4,0.8203]
[1734395727995,3.25,3966.1,3962.5,0.8203]
[1734395728200,0.23064245,3965.1,3962.8,0.8203]
[1734395728388,0.23064245,3965.0,3963.0,0.8203]
[1734395728574,0.23064245,3964.9,3963.0,0.8203]
[1734395728767,0.23064245,3964.8,3963.0,0.8203]
[1734395728983,0.23064245,3964.7,3963.2,0.7557]
[1734395729185,0.23064245,3964.6,3963.2,0.7557]
[1734395729386,0.23064245,3964.5,3963.2,0.7557]
[1734395729601,0.55,3965.3,3963.2,0.7557]
[1734395729804,0.55,3965.1,3963.2,0.7557]
[1734395730009,0.55,3964.9,3963.2,0.7557]
[1734395730174,0.23111937,3964.8,3963.2,0.7557]
[1734395730364,0.23111937,3964.7,3963.2,0.7557]
[1734395730559,0.55,3964.9,3963.2,0.7557]
[1734395730761,0.23114143,3964.8,3963.2,0.7557]
[1734395731012,0.23112849,3964.7,3963.2,0.7557]
[1734395731218,0.8203,3965.9,3963.4,0.7557]
[1734395731370,0.2311526,3965.8,3963.4,0.7557]
[1734395731574,0.2311526,3965.7,3963.6,0.7557]
[1734395731757,0.2311526,3965.6,3963.6,0.7557]
[1734395731961,0.2311526,3965.5,3963.6,0.7557]
[1734395732165,0.2311526,3965.4,3963.6,0.7557]
[1734395732387,0.8203,3965.2,3963.6,0.7557]
[1734395732611,0.55,3965.0,3963.6,0.7557]
[1734395732825,0.2311526,3964.9,3963.6,0.7557]
[1734395733023,0.2311526,3964.8,3963.6,0.7557]
[1734395733208,0.2311526,3964.7,3963.6,0.7557]
[1734395733416,0.2311526,3964.6,3963.6,0.7557]
[1734395733616,0.2311526,3964.5,3963.6,0.7557]
[1734395733817,3.199,3965.0,3963.6,0.7557]
[1734395734130,0.55,3964.8,3963.6,0.7557]
[1734395734327,0.55,3964.6,3963.6,0.7557]
[1734395734530,0.23151053,3964.5,3963.6,0.7557]
[1734395734832,0.23151053,3964.4,3963.6,0.7557]
[1734395735027,0.23151053,3964.3,3963.6,0.7557]
[1734395735340,0.8203,3965.5,3963.6,0.7557]
[1734395735341,0.23203687,3964.2,3963.6,0.7557]
[1734395735624,0.23203687,3964.1,3963.6,0.7557]
[1734395735832,0.8203,3966.0,3963.6,0.7557]
[1734395736141,0.23206727,3965.9,3963.7,0.7557]
[1734395736291,0.23206727,3965.8,3963.9,0.7557]
[1734395736489,0.23206727,3965.7,3963.9,0.7557]
[1734395736709,0.23206727,3965.6,3963.9,0.7557]
[1734395736906,0.23206727,3965.5,3963.9,0.7557]
[1734395737231,0.23206727,3965.4,3963.9,0.7557]
[1734395737439,0.23206727,3965.3,3963.9,0.7557]
[1734395737638,0.23206727,3965.2,3963.9,0.7557]
[1734395737782,0.23206727,3965.1,3964.0,0.7557]
[1734395737986,0.23206727,3965.0,3964.0,0.7557]
[1734395738287,0.23206727,3964.9,3964.0,0.7557]
[1734395738534,0.1246023,3966.0,3964.0,0.7557]
[1734395738535,0.23206727,3964.8,3964.0,0.7557]
[1734395738843,0.1246023,3966.0,3964.0,0.7557]
[1734395738844,0.23206727,3964.7,3964.0,0.7557]
[1734395739018,0.23206727,3964.6,3964.0,0.7557]
[1734395739327,0.23206727,3964.5,3964.0,0.7557]
[1734395739482,0.23206727,3964.4,3964.0,0.7557]
[1734395739683,0.8203,3964.8,3964.0,0.7557]
[1734395739684,0.23206727,3964.3,3964.0,0.7557]
[1734395739909,0.23206727,3964.2,3961.9,0.12631467]
[1734395740147,0.23236898,3964.1,3962.5,0.7557]
[1734395740369,0.23236898,3964.0,3962.7,0.7557]
[1734395740507,0.23240575,3963.9,3962.7,0.7557]
[1734395740705,0.23240575,3963.8,3962.7,0.7557]